bitfinex/quotes_BTCUSD_20240701
["timestamp","ask_amount","ask_price","bid_price","bid_amount"]
[1719818549560,0.04514118,63421.0,63420.0,1.13878198]
[1719818549812,0.04514118,63421.0,63420.0,1.12878198]
[1719818550008,0.027,63421.0,63420.0,1.12878198]
[1719818550332,0.013,63421.0,63420.0,1.12878198]
[1719818550534,0.15765,63432.0,63426.0,0.1494]
[1719818550695,0.23896246,63428.0,63426.0,0.1694]
[1719818550923,0.08130346,63428.0,63426.0,0.1694]
[1719818551136,0.01801611,63427.0,63426.0,0.1694]
[1719818553901,0.02801611,63427.0,63426.0,0.1694]
[1719818554116,0.01801611,63427.0,63426.0,0.1694]
[1719818554339,0.01802612,63427.0,63426.0,0.1694]
[1719818554551,0.19068712,63427.0,63426.0,0.1694]
[1719818554800,0.18268712,63427.0,63426.0,0.1694]
[1719818555123,0.17568712,63427.0,63426.0,0.1694]
[1719818556339,0.18568712,63427.0,63426.0,0.1694]
[1719818556782,0.18468712,63427.0,63426.0,0.1694]
[1719818557160,0.19268712,63427.0,63426.0,0.1694]
[1719818557371,0.166661,63427.0,63426.0,0.1694]
[1719818557569,0.18463869,63427.0,63426.0,0.1694]
[1719818557826,0.19463869,63427.0,63426.0,0.1694]
[1719818557947,0.167661,63427.0,63426.0,0.1694]
[1719818558156,0.17564849,63427.0,63426.0,0.1694]
[1719818558375,0.01798749,63427.0,63426.0,0.1694]
[1719818558576,0.157657,63429.0,63428.0,0.02]
[1719818558787,0.17564269,63429.0,63428.0,0.02]
[1719818560678,0.157657,63429.0,63428.0,0.02]
[1719818560891,0.18365209,63429.0,63428.0,0.02]
[1719818561304,0.18265209,63429.0,63428.0,0.02]
[1719818561514,0.19065209,63429.0,63428.0,0.02]
[1719818562409,0.18365209,63429.0,63428.0,0.02]
[1719818562867,0.19065209,63429.0,63428.0,0.02]
[1719818563272,0.18265209,63429.0,63428.0,0.02]
[1719818563515,0.03299509,63429.0,63428.0,0.02]
[1719818563897,0.03300699,63429.0,63428.0,0.02]
[1719818564102,0.04100699,63429.0,63428.0,0.1037]
[1719818565581,0.03400699,63429.0,63428.0,0.1037]
[1719818565978,0.04100699,63429.0,63428.0,0.1037]
[1719818566714,0.03400699,63429.0,63428.0,0.1037]
[1719818566887,0.02600699,63429.0,63428.0,0.1037]
[1719818567093,0.02500699,63429.0,63428.0,0.1037]
[1719818567293,0.03300721,63429.0,63428.0,0.1037]
[1719818567508,0.02600721,63429.0,63428.0,0.1037]
[1719818567713,0.01800721,63429.0,63428.0,0.1037]
[1719818567928,0.01800721,63429.0,63428.0,0.02]
[1719818568129,0.18166321,63429.0,63428.0,0.02]
[1719818568604,0.472977,63428.0,63427.0,0.02]
[1719818568840,0.157661,63427.0,63426.0,0.02]
[1719818569062,0.17566821,63427.0,63426.0,0.02]
[1719818570203,0.17966821,63427.0,63426.0,0.02]
[1719818570420,0.17965021,63427.0,63426.0,0.02]
[1719818570631,0.18265021,63427.0,63426.0,0.02]
[1719818570842,0.18265069,63427.0,63426.0,0.1066]
[1719818571456,0.17865069,63427.0,63426.0,0.1066]
[1719818571859,0.18265069,63427.0,63426.0,0.1066]
[1719818572726,0.17965069,63427.0,63426.0,0.1066]
[1719818573344,0.17966007,63427.0,63426.0,0.1066]
[1719818573597,0.162501,63427.0,63426.0,0.1066]
[1719818573759,0.18350043,63427.0,63426.0,0.1066]
[1719818574169,0.17950043,63427.0,63426.0,0.1066]
[1719818574377,0.02183943,63427.0,63426.0,0.1066]
[1719818574992,0.03183943,63427.0,63426.0,0.1066]
[1719818575192,0.06770481,63427.0,63426.0,0.1066]
[1719818575393,0.22536581,63427.0,63426.0,0.1066]
[1719818576413,0.21536581,63427.0,63426.0,0.1066]
[1719818576795,0.21636581,63427.0,63426.0,0.1066]
[1719818577005,0.21236581,63427.0,63426.0,0.1066]
[1719818577195,0.22136581,63427.0,63426.0,0.1066]
[1719818577467,0.23136581,63427.0,63426.0,0.1066]
[1719818577782,0.22236581,63427.0,63426.0,0.1066]
[1719818578221,0.23136581,63427.0,63426.0,0.1066]
[1719818579898,0.23137012,63427.0,63426.0,0.1066]
[1719818580442,0.23137012,63427.0,63426.0,0.02]
[1719818581763,0.157673,63422.0,63421.0,0.000924]
[1719818581966,0.21154212,63422.0,63421.0,0.000924]
[1719818582099,0.21154212,63422.0,63421.0,0.020924]
[1719818582282,0.2114844,63422.0,63421.0,0.020924]
[1719818582686,0.157673,63422.0,63421.0,0.020924]
[1719818582949,0.21148426,63422.0,63421.0,0.020924]
[1719818583827,0.21948426,63422.0,63421.0,0.020924]
[1719818584029,0.22248426,63422.0,63421.0,0.020924]
[1719818584529,0.21148426,63422.0,63421.0,0.020924]
[1719818585140,0.06081126,63422.0,63421.0,0.020924]
[1719818585350,0.007,63422.0,63421.0,0.020924]
[1719818585669,0.01799397,63422.0,63421.0,0.020924]
[1719818585866,0.05385045,63422.0,63421.0,0.020924]
[1719818586212,0.05685045,63422.0,63421.0,0.020924]
[1719818586409,0.05385045,63422.0,63421.0,0.020924]
[1719818586864,0.06085045,63422.0,63421.0,0.020924]
[1719818587711,0.05385045,63422.0,63421.0,0.020924]
[1719818587882,0.06385045,63422.0,63421.0,0.020924]
[1719818588092,0.07085045,63422.0,63421.0,0.020924]
[1719818589277,0.06385045,63422.0,63421.0,0.020924]
[1719818589606,0.23052345,63422.0,63421.0,0.020924]
[1719818591641,0.176673,63422.0,63421.0,0.020924]
[1719818591886,0.23056806,63422.0,63421.0,0.020924]
[1719818592459,0.22156806,63422.0,63421.0,0.020924]
[1719818592860,0.22056806,63422.0,63421.0,0.020924]
[1719818593062,0.23356806,63422.0,63421.0,0.020924]
[1719818593799,0.54891506,63422.0,63421.0,0.020924]
[1719818594512,0.53591506,63422.0,63421.0,0.020924]
[1719818594664,0.53791506,63422.0,63421.0,0.020924]
[1719818594880,0.48402,63422.0,63421.0,0.020924]
[1719818595075,0.53792235,63422.0,63421.0,0.020924]
[1719818595318,0.48402,63422.0,63421.0,0.020924]
[1719818595616,0.966967,63422.0,63421.0,0.020924]
[1719818596590,1.00285068,63422.0,63421.0,0.020924]
[1719818596990,0.99185068,63422.0,63421.0,0.020924]
[1719818597398,0.04788368,63422.0,63421.0,0.180824]
[1719818597846,0.06088368,63422.0,63421.0,0.180824]
[1719818598046,0.07890614,63422.0,63421.0,0.180824]
[1719818598250,0.04302246,63422.0,63421.0,0.180824]
[1719818598419,0.20069546,63422.0,63421.0,0.180824]
[1719818598631,0.03002246,63422.0,63421.0,0.180824]
[1719818600348,0.01802246,63422.0,63421.0,0.180824]
[1719818600486,0.02802246,63422.0,63421.0,0.180824]
[1719818600723,0.03702246,63422.0,63421.0,0.180824]
[1719818600927,0.019,63422.0,63421.0,0.180824]
[1719818601124,0.04559134,63422.0,63421.0,0.180824]
[1719818602190,0.0455987,63422.0,63421.0,0.180824]
[1719818603391,0.0365987,63422.0,63421.0,0.180824]
[1719818603556,0.0265987,63422.0,63421.0,0.180824]
[1719818603757,0.0375987,63422.0,63421.0,0.180824]
[1719818604003,0.0485987,63422.0,63421.0,0.180824]
[1719818604194,0.0375987,63422.0,63421.0,0.180824]
[1719818604367,0.0265987,63422.0,63421.0,0.180824]
[1719818604726,0.0455987,63422.0,63421.0,0.180824]
[1719818605659,0.0455987,63422.0,63421.0,0.020924]
[1719818605806,0.019,63422.0,63421.0,0.020924]
[1719818606015,0.009,63422.0,63421.0,0.020924]
[1719818606220,0.0355939,63422.0,63421.0,0.020924]
[1719818607475,0.0395939,63422.0,63421.0,0.020924]
[1719818607787,0.4996139,63422.0,63421.0,0.000924]
[1719818608017,1.0657609,63422.0,63421.0,0.000924]
[1719818608217,1.0787609,63422.0,63421.0,0.000924]
[1719818608365,1.0657609,63422.0,63421.0,0.000924]
[1719818608568,1.0527609,63422.0,63421.0,0.000924]
[1719818608770,1.0637609,63422.0,63421.0,0.000924]
[1719818609164,1.0747609,63422.0,63421.0,0.000924]
[1719818609386,1.048167,63422.0,63421.0,0.000924]
[1719818609560,0.20627294,63422.0,63421.0,0.084224]
[1719818609765,0.20627294,63422.0,63421.0,0.104224]
[1719818612461,0.20626133,63422.0,63421.0,0.104224]
[1719818613783,0.20626133,63422.0,63421.0,0.020924]
[1719818615665,0.20616662,63422.0,63421.0,0.020924]
[1719818619644,0.19516662,63422.0,63421.0,0.020924]
[1719818619846,0.19716662,63422.0,63421.0,0.020924]
[1719818620241,0.21016662,63422.0,63421.0,0.020924]
[1719818620800,0.19716662,63422.0,63421.0,0.020924]
[1719818621118,0.03949362,63422.0,63421.0,0.020924]
[1719818621450,0.02649362,63422.0,63421.0,0.020924]
[1719818621659,0.03749362,63422.0,63421.0,0.020924]
[1719818622088,0.011,63422.0,63421.0,0.020924]
[1719818622240,0.19520903,63422.0,63421.0,0.020924]
[1719818622648,0.20620976,63422.0,63421.0,0.020924]
[1719818622844,0.20620976,63422.0,63421.0,0.000924]
[1719818623066,1.07030376,63422.0,63421.0,0.000924]
[1719818623501,1.05930376,63422.0,63421.0,0.000924]
[1719818623782,1.07330376,63422.0,63421.0,0.000924]
[1719818624543,1.04830376,63422.0,63421.0,0.000924]
[1719818624771,1.06230376,63422.0,63421.0,0.000924]
[1719818624975,1.06194598,63422.0,63421.0,0.000924]
[1719818625151,1.04794598,63422.0,63421.0,0.000924]
[1719818625403,1.06104299,63422.0,63421.0,0.000924]
[1719818625607,0.98754299,63422.0,63421.0,0.000924]
[1719818626221,0.98754299,63422.0,63421.0,0.020924]
[1719818626423,1.00054299,63422.0,63421.0,0.020924]
[1719818626665,0.68519599,63422.0,63421.0,0.020924]
[1719818626877,0.52529599,63422.0,63421.0,0.020924]
[1719818627290,0.05263377,63422.0,63421.0,0.020924]
[1719818628547,0.05256681,63422.0,63421.0,0.020924]
[1719818631651,0.026,63422.0,63421.0,0.020924]
[1719818631869,0.05256937,63422.0,63421.0,0.020924]
[1719818634129,0.21024237,63422.0,63421.0,0.020924]
[1719818635004,0.52558554,63422.0,63421.0,0.020924]
[1719818635411,0.52558558,63422.0,63421.0,0.020924]
[1719818636782,0.51258558,63422.0,63421.0,0.020924]
[1719818637257,0.58708558,63422.0,63421.0,0.020924]
[1719818637777,0.57309545,63422.0,63421.0,0.020924]
[1719818638019,0.54652,63422.0,63421.0,0.020924]
[1719818638226,0.58609548,63422.0,63421.0,0.020924]
[1719818638611,0.60009548,63422.0,63421.0,0.020924]
[1719818639038,0.90144248,63422.0,63421.0,0.000924]
[1719818639254,1.37468948,63422.0,63421.0,0.000924]
[1719818639495,1.38768948,63422.0,63421.0,0.000924]
[1719818640826,1.70303648,63422.0,63421.0,0.000924]
[1719818641003,3.38001759,63422.0,63421.0,0.000924]
[1719818641231,3.43511946,63422.0,63421.0,0.000924]
[1719818641441,3.63511946,63422.0,63421.0,0.000924]
[1719818641639,3.79480928,63422.0,63421.0,0.000924]
[1719818641816,3.44678575,63422.0,63421.0,0.000924]
[1719818642259,3.46078575,63422.0,63421.0,0.000924]
[1719818642387,3.44678575,63422.0,63421.0,0.000924]
[1719818642593,3.46078575,63422.0,63421.0,0.000924]
[1719818642794,3.47478575,63422.0,63421.0,0.000924]
[1719818642999,3.46078575,63422.0,63421.0,0.000924]
[1719818643410,3.47478575,63422.0,63421.0,0.000924]
[1719818643780,3.46082734,63422.0,63421.0,0.000924]
[1719818643992,2.89051934,63422.0,63421.0,0.000924]
[1719818644158,2.80531211,63422.0,63421.0,0.000924]
[1719818644391,3.14695117,63422.0,63421.0,0.000924]
[1719818644610,3.13295117,63422.0,63421.0,0.000924]
[1719818644986,3.14695117,63422.0,63421.0,0.000924]
[1719818645396,3.01931211,63422.0,63421.0,0.000924]
[1719818645598,2.99131211,63422.0,63421.0,0.000924]
[1719818645803,2.79131211,63422.0,63421.0,0.000924]
[1719818646021,2.085036,63421.0,63420.0,0.009251]
[1719818646223,3.4088117,63421.0,63420.0,0.009251]
[1719818646651,3.40880563,63421.0,63420.0,0.009251]
[1719818648308,3.57113934,63421.0,63420.0,0.009251]
[1719818648487,3.58513934,63421.0,63420.0,0.009251]
[1719818648893,3.57113934,63421.0,63420.0,0.009251]
[1719818649678,3.58513934,63421.0,63420.0,0.009251]
[1719818649882,3.59913934,63421.0,63420.0,0.009251]
[1719818650098,3.5991413,63421.0,63420.0,0.009251]
[1719818650509,3.5851413,63421.0,63420.0,0.009251]
[1719818650988,3.5991413,63421.0,63420.0,0.009251]
[1719818651739,3.5851413,63421.0,63420.0,0.009251]
[1719818651939,3.5991413,63421.0,63420.0,0.009251]
[1719818653260,3.57249215,63421.0,63420.0,0.009251]
[1719818653501,3.43680951,63421.0,63420.0,0.009251]
[1719818653921,3.14839051,63421.0,63420.0,0.009251]
[1719818654499,3.25222718,63421.0,63420.0,0.009251]
[1719818655484,3.23822718,63421.0,63420.0,0.009251]
[1719818655907,2.134491,63419.0,63418.0,1e-06]
[1719818656099,4.84418792,63419.0,63418.0,1e-06]
[1719818656298,4.94418139,63419.0,63418.0,1e-06]
[1719818656499,3.04813839,63419.0,63418.0,1e-06]
[1719818656756,4.69914437,63419.0,63418.0,1e-06]
[1719818657089,4.49914437,63419.0,63418.0,1e-06]
[1719818657540,4.51314437,63419.0,63418.0,1e-06]
[1719818657784,4.52714437,63419.0,63418.0,1e-06]
[1719818658983,4.43018437,63419.0,63418.0,1e-06]
[1719818659209,4.38953983,63419.0,63418.0,1e-06]
[1719818659410,4.43017592,63419.0,63418.0,1e-06]
[1719818659668,4.43017591,63419.0,63418.0,1e-06]
[1719818660075,4.47426513,63419.0,63418.0,1e-06]
[1719818660333,4.52313148,63419.0,63418.0,1e-06]
[1719818662912,4.45240618,63419.0,63418.0,1e-06]
[1719818663113,4.52317114,63419.0,63418.0,1e-06]
[1719818664275,0.2,63409.0,63403.0,0.009251]
[1719818664436,0.706355,63404.0,63403.0,0.009251]
[1719818664646,0.96245894,63404.0,63403.0,0.009251]
[1719818664865,2.32420694,63404.0,63403.0,0.009251]
[1719818665697,2.52420694,63404.0,63403.0,0.009251]
[1719818665909,2.74065094,63404.0,63403.0,0.009251]
[1719818666113,2.86988598,63404.0,63403.0,0.009251]
[1719818666313,2.94079922,63404.0,63403.0,0.009251]
[1719818666600,2.95479847,63404.0,63403.0,0.009251]
[1719818667210,2.75479847,63404.0,63403.0,0.009251]
[1719818667386,2.95479847,63404.0,63403.0,0.009251]
[1719818667847,2.96879847,63404.0,63403.0,0.009251]
[1719818668830,2.76879847,63404.0,63403.0,0.009251]
[1719818669212,2.89788598,63404.0,63403.0,0.009251]
[1719818669419,2.75236832,63404.0,63403.0,0.009251]
[1719818669610,3.77603732,63404.0,63403.0,0.009251]
[1719818671359,3.76203732,63404.0,63403.0,0.009251]
[1719818671562,3.67532432,63404.0,63403.0,0.009251]
[1719818671757,3.76282432,63404.0,63403.0,0.009251]
[1719818672099,3.74882432,63404.0,63403.0,0.009251]
[1719818672308,3.66389798,63404.0,63403.0,0.009251]
[1719818672533,3.74884907,63404.0,63403.0,0.009251]
[1719818672774,3.73484907,63404.0,63403.0,0.009251]
[1719818672996,3.74884907,63404.0,63403.0,0.009251]
[1719818673238,3.76722185,63404.0,63403.0,0.009251]
[1719818673456,3.78122185,63404.0,63403.0,0.009251]
[1719818673697,3.76722185,63404.0,63403.0,0.009251]
[1719818674130,3.78122185,63404.0,63403.0,0.009251]
[1719818674869,3.76722185,63404.0,63403.0,0.009251]
[1719818675067,1.82073075,63404.0,63403.0,0.009251]
[1719818675268,1.84025607,63404.0,63403.0,0.009251]
[1719818675704,1.78330498,63404.0,63403.0,0.009251]
[1719818675863,1.85425631,63404.0,63403.0,0.009251]
[1719818676099,1.82625631,63404.0,63403.0,0.009251]
[1719818676598,1.86325631,63404.0,63403.0,0.009251]
[1719818677000,1.87725631,63404.0,63403.0,0.009251]
[1719818678695,1.86325631,63404.0,63403.0,0.009251]
[1719818678919,1.86314601,63404.0,63403.0,0.009251]
[1719818679107,1.87714601,63404.0,63403.0,0.009251]
[1719818679315,1.87714558,63404.0,63403.0,0.009251]
[1719818680129,1.87714558,63404.0,63403.0,0.162551]
[1719818680130,1.46520858,63404.0,63403.0,0.162551]
[1719818680304,1.53870858,63404.0,63403.0,0.162551]
[1719818681964,1.45386798,63404.0,63403.0,0.162551]
[1719818682158,1.53855465,63404.0,63403.0,0.162551]
[1719818682595,1.51055465,63404.0,63403.0,0.162551]
[1719818682807,1.52455465,63404.0,63403.0,0.162551]
[1719818683615,1.53855465,63404.0,63403.0,0.162551]
[1719818685056,1.37621567,63404.0,63403.0,0.162551]
[1719818685267,1.37621567,63404.0,63403.0,0.182551]
[1719818685268,0.890092,63404.0,63403.0,0.182551]
[1719818685474,0.55780606,63404.0,63403.0,0.182551]
[1719818686115,0.52776015,63404.0,63403.0,0.182551]
[1719818686324,0.51376015,63404.0,63403.0,0.182551]
[1719818687109,0.82919715,63404.0,63403.0,0.182551]
[1719818687349,0.82919715,63404.0,63403.0,0.162551]
[1719818687350,0.94661844,63404.0,63403.0,0.162551]
[1719818687550,1.24805544,63404.0,63403.0,0.164951]
[1719818688326,1.185529,63404.0,63403.0,0.164951]
[1719818688646,1.24801895,63404.0,63403.0,0.164951]
[1719818688868,1.26201895,63404.0,63403.0,0.164951]
[1719818689433,1.27001895,63404.0,63403.0,0.164951]
[1719818690017,1.26201895,63404.0,63403.0,0.164951]
[1719818690424,1.27601895,63404.0,63403.0,0.164951]
[1719818690954,1.27601895,63404.0,63403.0,0.009251]
[1719818691657,1.305529,63404.0,63403.0,0.009251]
[1719818691860,1.87688769,63404.0,63403.0,0.009251]
[1719818692071,1.79230498,63404.0,63403.0,0.009251]
[1719818692284,1.87699893,63404.0,63403.0,0.009251]
[1719818693566,1.86299893,63404.0,63403.0,0.009251]
[1719818693983,1.87699893,63404.0,63403.0,0.009251]
[1719818694807,1.87701434,63404.0,63403.0,0.009251]
[1719818695005,1.87701433,63404.0,63403.0,0.009251]
[1719818696528,2.04001433,63404.0,63403.0,0.009251]
[1719818697217,2.15807465,63404.0,63403.0,0.009251]
[1719818697435,1.48807733,63404.0,63403.0,0.009251]
[1719818697675,1.54757733,63404.0,63403.0,0.009251]
[1719818697901,1.47686798,63404.0,63403.0,0.009251]
[1719818698124,1.56153397,63404.0,63403.0,0.009251]
[1719818699003,1.54753397,63404.0,63403.0,0.009251]
[1719818699235,1.56153397,63404.0,63403.0,0.009251]
[1719818699490,1.37619499,63404.0,63403.0,0.098151]
[1719818699711,1.36774395,63404.0,63403.0,0.166751]
[1719818700689,1.36774395,63404.0,63403.0,0.186751]
[1719818700891,1.36771396,63404.0,63403.0,0.186751]
[1719818701061,1.36771396,63404.0,63403.0,0.166751]
[1719818702723,1.36771396,63404.0,63403.0,0.639911]
[1719818703527,1.36768324,63404.0,63403.0,0.639911]
[1719818703863,1.29707796,63404.0,63403.0,0.639911]
[1719818704208,1.36768322,63404.0,63403.0,0.639911]
[1719818704407,0.157739,63396.0,63390.0,0.167752]
[1719818704642,0.07060526,63395.0,63391.0,0.00315469]
[1719818704754,0.07060526,63394.0,63390.0,0.1709067]
[1719818704963,0.02658158,63393.0,63390.0,0.1609067]
[1719818705184,0.02658158,63392.0,63390.0,0.1609067]
[1719818705358,0.157741,63395.0,63391.0,0.44666842]
[1719818705557,0.0440293,63394.0,63391.0,0.44666842]
[1719818705762,0.157741,63395.0,63391.0,0.44666842]
[1719818705965,0.05702931,63394.0,63391.0,0.44666842]
[1719818706239,0.014,63396.0,63395.0,0.367741]
[1719818706462,0.014,63396.0,63395.0,1.33536198]
[1719818706584,0.014,63396.0,63395.0,1.65084398]
[1719818707208,0.014,63396.0,63395.0,1.71401098]
[1719818707409,0.014,63396.0,63395.0,0.868667]
[1719818707636,0.014,63396.0,63395.0,0.8055]
[1719818708178,0.157731,63399.0,63397.0,0.0799]
[1719818708457,0.157731,63399.0,63398.0,0.49978]
[1719818708458,0.798655,63399.0,63398.0,0.49978]
[1719818708788,0.83960046,63399.0,63398.0,0.49978]
[1719818708985,0.83960046,63399.0,63398.0,0.60548]
[1719818709512,0.84760046,63399.0,63398.0,0.60548]
[1719818709950,0.8396145,63399.0,63398.0,0.60548]
[1719818710178,0.8476145,63399.0,63398.0,0.60548]
[1719818711798,0.8556145,63399.0,63398.0,0.60548]
[1719818712199,0.8476145,63399.0,63398.0,0.60548]
[1719818712430,0.8396145,63399.0,63398.0,0.60548]
[1719818712880,0.8556145,63399.0,63398.0,0.60548]
[1719818713283,0.85561478,63399.0,63398.0,0.60548]
[1719818715470,0.87899545,63399.0,63398.0,0.60548]
[1719818715924,0.03938067,63399.0,63398.0,0.80548]
[1719818716474,0.03934424,63399.0,63398.0,0.80548]
[1719818717596,0.03934424,63399.0,63398.0,0.963213]
[1719818717924,0.03934424,63399.0,63398.0,1.594147]
[1719818719328,0.016,63399.0,63398.0,1.594147]
[1719818722330,0.03928235,63399.0,63398.0,1.594147]
[1719818723744,0.016,63399.0,63398.0,1.594147]
[1719818725688,0.016,63399.0,63398.0,2.78121998]
[1719818726001,0.016,63399.0,63398.0,2.98121998]
[1719818726517,0.008,63399.0,63398.0,2.98121998]
[1719818726713,0.00084,63414.0,63413.0,0.3126]
[1719818726938,0.00084,63414.0,63413.0,0.81227]
[1719818727138,0.00084,63414.0,63413.0,0.969966]
[1719818728062,0.01284,63414.0,63413.0,0.969966]
[1719818729482,0.02484,63414.0,63413.0,0.969966]
[1719818729690,0.02484,63414.0,63413.0,1.76308898]
[1719818731930,0.02484,63414.0,63413.0,0.79907]
[1719818732150,0.02484,63414.0,63413.0,0.69967]
[1719818732336,0.02484,63414.0,63413.0,0.857366]
[1719818734562,0.04815072,63414.0,63413.0,0.69967]
[1719818735868,0.05815072,63414.0,63413.0,0.69967]
[1719818736508,0.29714718,63414.0,63413.0,0.69967]
[1719818736737,0.37064718,63414.0,63413.0,0.49967]
[1719818737064,0.68603418,63414.0,63413.0,0.49967]
[1719818737267,0.6860261,63414.0,63413.0,0.49967]
[1719818737467,0.3606391,63414.0,63413.0,0.49967]
[1719818737670,0.33733646,63414.0,63413.0,0.49967]
[1719818737876,0.3606391,63414.0,63413.0,0.49967]
[1719818738094,0.27933564,63414.0,63413.0,0.49967]
[1719818738938,0.04814264,63414.0,63413.0,0.49967]
[1719818740314,0.04812671,63414.0,63413.0,0.49967]
[1719818740676,0.05812671,63414.0,63413.0,0.49967]
[1719818740883,0.16262671,63414.0,63413.0,0.49967]
[1719818741388,0.32031971,63414.0,63413.0,0.49967]
[1719818743608,0.297033,63414.0,63413.0,0.49967]
[1719818743812,0.32030272,63414.0,63413.0,0.49967]
[1719818744449,0.36118466,63414.0,63413.0,0.49967]
[1719818744658,0.32030272,63414.0,63413.0,0.49967]
[1719818745238,0.36118119,63414.0,63413.0,0.49967]
[1719818746432,1.06435865,63414.0,63413.0,0.49967]
[1719818746601,1.13705865,63414.0,63413.0,0.49967]
[1719818746800,1.07291046,63414.0,63413.0,0.49967]
[1719818747064,1.13705236,63414.0,63413.0,0.49967]
[1719818747620,1.0557489,63414.0,63413.0,0.49336919]
[1719818750042,1.05581458,63414.0,63413.0,0.49336919]
[1719818750517,1.01490527,63414.0,63413.0,0.49336919]
[1719818750719,1.05581443,63414.0,63413.0,0.49336919]
[1719818751277,0.24674043,63414.0,63413.0,0.49336919]
[1719818751651,0.08904743,63414.0,63413.0,0.64806919]
[1719818753116,0.08922794,63414.0,63413.0,0.64806919]
[1719818753900,0.08922794,63414.0,63413.0,0.59286919]
[1719818754105,0.04823087,63414.0,63413.0,1.87238817]
[1719818754312,0.04823087,63414.0,63413.0,1.88238817]
[1719818754514,0.04823087,63414.0,63413.0,1.87238817]
[1719818755081,0.03623087,63414.0,63413.0,1.87238817]
[1719818755540,0.03623087,63414.0,63413.0,1.87438817]
[1719818755686,0.02423087,63414.0,63413.0,1.87438817]
[1719818756296,0.02420522,63414.0,63413.0,1.87438817]
[1719818757861,0.02420522,63414.0,63413.0,1.88438817]
[1719818759326,0.00084,63414.0,63413.0,1.88438817]
[1719818759532,0.02427278,63414.0,63413.0,1.87438817]
[1719818761174,0.02427278,63414.0,63413.0,2.19978017]
[1719818761900,0.02428607,63414.0,63413.0,2.19978017]
[1719818762254,0.02427298,63414.0,63413.0,2.19978017]
[1719818762412,0.02427298,63414.0,63413.0,2.18978017]
[1719818763282,0.02427298,63414.0,63413.0,2.19978017]
[1719818763907,0.02427298,63414.0,63413.0,2.18978017]
[1719818764115,0.02427298,63414.0,63413.0,2.11628017]
[1719818764327,0.02427298,63414.0,63413.0,2.18978017]
[1719818764963,0.02428772,63414.0,63413.0,2.18978017]
[1719818766034,0.02428772,63414.0,63413.0,2.19978017]
[1719818766551,0.02428772,63414.0,63413.0,1.87438817]
[1719818766791,0.02428772,63414.0,63413.0,1.64618817]
[1719818768592,0.02428772,63414.0,63413.0,2.18748017]
[1719818771015,0.02428772,63414.0,63413.0,1.87208817]
[1719818771227,0.00084,63414.0,63413.0,1.79858817]
[1719818771435,0.00084,63414.0,63413.0,0.49536919]
[1719818771436,0.68523169,63414.0,63413.0,0.49536919]
[1719818771759,1.04163784,63414.0,63413.0,0.49536919]
[1719818772517,2.05475082,63414.0,63413.0,0.41146919]
[1719818772666,2.34008453,63414.0,63413.0,0.11776919]
[1719818772876,2.34008453,63414.0,63413.0,0.002]
[1719818772877,2.85079282,63414.0,63413.0,0.002]
[1719818773849,2.85079282,63414.0,63395.0,1.26197111]
[1719818774041,2.0250158,63414.0,63413.0,0.000924]
[1719818774266,2.0985158,63414.0,63413.0,0.000924]
[1719818774398,4.24509515,63414.0,63413.0,0.000924]
[1719818774581,4.40076156,63414.0,63413.0,0.000924]
[1719818774797,4.4007623,63414.0,63413.0,0.000924]
[1719818775030,4.72543499,63414.0,63413.0,0.000924]
[1719818775265,4.71943499,63414.0,63413.0,0.000924]
[1719818775496,4.58376804,63414.0,63413.0,0.000924]
[1719818775722,4.65323324,63414.0,63413.0,0.000924]
[1719818775944,3.72862024,63414.0,63413.0,0.000924]
[1719818776155,3.72262024,63414.0,63413.0,0.000924]
[1719818776395,3.74164561,63414.0,63413.0,0.000924]
[1719818776882,3.0556869,63414.0,63413.0,0.000924]
[1719818777122,2.7998679,63414.0,63413.0,0.000924]
[1719818777350,2.73485135,63414.0,63413.0,0.000924]
[1719818777822,2.79988216,63414.0,63413.0,0.000924]
[1719818778561,2.77309216,63414.0,63413.0,0.000924]
[1719818780390,2.03587616,63414.0,63413.0,0.000924]
[1719818780595,1.59343298,63414.0,63413.0,0.000924]
[1719818780817,1.65848146,63414.0,63413.0,0.000924]
[1719818781416,1.63948146,63414.0,63413.0,0.000924]
[1719818781633,1.66348146,63414.0,63413.0,0.000924]
[1719818781805,1.65348146,63414.0,63413.0,0.000924]
[1719818782519,1.63948146,63414.0,63413.0,0.000924]
[1719818782903,1.65348146,63414.0,63413.0,0.000924]
[1719818783740,1.65351735,63414.0,63413.0,0.000924]
[1719818786404,1.58843298,63414.0,63413.0,0.000924]
[1719818786619,1.65352765,63414.0,63413.0,0.000924]
[1719818787250,1.65353256,63414.0,63413.0,0.000924]
[1719818790326,1.65352721,63414.0,63413.0,0.000924]
[1719818792332,2.29216021,63414.0,63413.0,0.000924]
[1719818792733,0.798692,63396.0,63386.0,0.869]
[1719818792935,1.01035084,63396.0,63395.0,0.00497111]
[1719818793139,1.32582784,63396.0,63395.0,0.00497111]
[1719818794255,1.33682784,63396.0,63395.0,0.00497111]
[1719818795024,1.34782784,63396.0,63395.0,0.00497111]
[1719818795908,1.71467674,63396.0,63395.0,0.00497111]
[1719818796321,1.70467674,63396.0,63395.0,0.00497111]
[1719818796642,1.70482512,63396.0,63395.0,0.00497111]
[1719818797590,1.71482512,63396.0,63395.0,0.00497111]
[1719818798654,1.8871641,63396.0,63395.0,0.00497111]
[1719818799444,2.0101641,63396.0,63395.0,0.00497111]
[1719818799908,1.99905032,63396.0,63395.0,0.00497111]
[1719818800457,1.98805032,63396.0,63395.0,0.00497111]
[1719818800707,2.50352732,63396.0,63395.0,0.00497111]
[1719818800931,1.97805032,63396.0,63395.0,0.00497111]
[1719818801126,1.98805032,63396.0,63395.0,0.00497111]
[1719818801329,2.00205032,63396.0,63395.0,0.00497111]
[1719818801604,2.01605032,63396.0,63395.0,0.00497111]
[1719818801833,2.21605032,63396.0,63395.0,0.00497111]
[1719818802270,2.53152732,63396.0,63395.0,0.00497111]
[1719818802889,2.46636198,63396.0,63395.0,0.00497111]
[1719818803092,2.33153329,63396.0,63395.0,0.00497111]
[1719818805129,1.99605629,63396.0,63395.0,0.00497111]
[1719818805953,2.00605629,63396.0,63395.0,0.00589511]
[1719818806135,2.0160835,63396.0,63395.0,0.00589511]
[1719818807190,2.0060835,63396.0,63395.0,0.00589511]
[1719818807535,2.0160835,63396.0,63395.0,0.00589511]